bitfinex/quotes_ETHUSD_20211001
["timestamp","ask_amount","ask_price","bid_price","bid_amount"]
[1633084128393,1.16578251,3152.1,3152.0,0.159]
[1633084128612,1.16578251,3152.1,3152.0,0.17847624]
[1633084128903,1.91836503,3153.0,3152.0,0.17847624]
[1633084128904,1.988,3153.2,3152.1,2.22484849]
[1633084129099,1.888,3153.2,3152.9,0.02480659]
[1633084129302,0.97727489,3152.9,3152.7,1.21225184]
[1633084129507,0.009,3154.0,3153.2,1.14542331]
[1633084129712,0.73587772,3153.2,3152.9,6.61306795]
[1633084129908,9.6020516,3154.2,3152.9,6.61306795]
[1633084129909,0.006,3154.6,3154.3,11.6936329]
[1633084130107,0.006,3154.6,3152.9,1.25188195]
[1633084130108,5.49812799,3153.7,3152.9,1.25188195]
[1633084130305,0.03071953,3153.3,3152.1,2.59025768]
[1633084130501,0.003,3152.5,3152.1,2.59025768]
[1633084130899,0.89294893,3152.6,3152.1,2.59025768]
[1633084131100,0.75580152,3152.7,3152.4,0.02895]
[1633084131300,0.75580152,3152.7,3152.5,6.3478]
[1633084131604,1.0,3153.2,3152.6,0.0707901]
[1633084131804,0.2854,3154.8,3153.5,1.97887199]
[1633084132006,0.309477,3154.8,3153.6,8.61581271]
[1633084132200,0.92728989,3153.7,3153.6,6.3478]
[1633084132405,1.26751654,3154.9,3153.6,5.9478]
[1633084132601,0.03783029,3155.2,3155.0,2.53415584]
[1633084132811,3.49695037,3155.6,3155.1,2.43843949]
[1633084133004,0.003,3155.1,3153.7,0.003]
[1633084133202,0.02412926,3153.8,3153.6,4.86333226]
[1633084133403,0.02412926,3153.8,3153.7,4.05787097]
[1633084133601,3.49695037,3155.6,3155.1,0.82758655]
[1633084133602,0.003,3155.5,3155.1,0.82758655]
[1633084133807,5.60022682,3154.9,3154.0,0.003]
[1633084134002,1.12440446,3154.9,3154.1,5.11970692]
[1633084134402,0.09439222,3155.0,3154.9,0.62524214]
[1633084134601,0.09439222,3155.0,3154.0,0.006]
[1633084134602,0.0093,3154.8,3154.0,0.006]
[1633084134904,0.02590747,3155.0,3154.4,1.06488209]
[1633084135103,0.02590747,3155.0,3154.5,0.003]
[1633084135310,0.003,3155.5,3154.5,0.003]
[1633084135506,0.006,3157.4,3157.2,0.03067145]
[1633084135709,0.08301,3158.0,3157.6,6.34474014]
[1633084135906,1.18721366,3157.9,3157.4,2.55137199]
[1633084136102,1.18721366,3157.9,3157.2,0.03067145]
[1633084136103,1.0789299,3157.4,3156.5,0.003]
[1633084136304,1.54517822,3157.0,3156.3,0.003]
[1633084136507,1.54517822,3157.0,3155.4,0.0254049]
[1633084136508,2.0,3159.8,3158.8,26.97837723]
[1633084136711,0.156,3160.5,3159.4,6.15025769]
[1633084136712,5.662063,3159.9,3159.4,6.15025769]
[1633084136905,0.01359205,3159.9,3159.5,4.56107435]
[1633084137106,0.003,3160.5,3159.5,4.56107435]
[1633084137107,21.89265743,3160.0,3159.7,0.93060155]
[1633084137308,21.89265743,3160.0,3159.5,0.2392437]
[1633084137309,0.015,3160.4,3160.1,4.80314084]
[1633084137513,0.015,3160.4,3160.2,3.71328288]
[1633084137706,15.64752249,3162.4,3160.3,15.0]
[1633084137912,15.64752249,3162.4,3161.5,0.003]
[1633084137913,11.73291045,3162.4,3161.5,0.003]
[1633084138111,3.1686,3164.4,3164.0,21.65188334]
[1633084138308,3.1686,3164.4,3164.0,2.65029334]
[1633084138309,4.75027,3164.1,3164.0,2.65029334]
[1633084138506,4.75027,3164.1,3162.8,0.54698424]
[1633084138507,7.57678417,3164.0,3162.8,0.54698424]
[1633084138708,1.47641826,3162.8,3162.5,0.003]
[1633084138910,4.83207,3164.1,3160.3,0.24733762]
[1633084138911,0.49169945,3165.4,3162.7,15.0]
[1633084139111,2.71841095,3165.1,3164.0,1.90947744]
[1633084139326,0.79820994,3165.2,3165.1,0.73557078]
[1633084139507,3.37669484,3164.0,3162.9,0.88892082]
[1633084139716,3.37669484,3164.0,3160.6,0.006]
[1633084139717,0.55966,3163.6,3160.0,14.77948631]
[1633084139908,0.55966,3163.6,3160.6,4.49504495]
[1633084139909,0.003,3161.0,3160.6,4.49504495]
[1633084140120,0.02592493,3163.0,3161.6,2.92288415]
[1633084140416,0.02592493,3163.0,3161.7,2.39482937]
[1633084140417,0.003,3162.9,3161.7,2.39482937]
[1633084140613,0.003,3163.5,3162.8,15.0]
[1633084140818,0.72687572,3165.9,3165.8,0.91946743]
[1633084141008,4.52571624,3167.4,3165.8,0.55144]
[1633084141009,5.85831624,3167.4,3165.8,0.55144]
[1633084141208,5.85831624,3167.4,3165.9,0.76037]
[1633084141209,0.31477579,3167.2,3165.9,0.76037]
[1633084141512,0.31477579,3167.2,3164.5,0.003]
[1633084141513,0.31879201,3167.0,3166.5,0.003]
[1633084141707,4.52571624,3167.4,3167.1,0.006]
[1633084141708,4.3518873,3167.4,3167.1,0.006]
[1633084141910,2.42878475,3166.0,3165.8,0.83847767]
[1633084142124,1.66e-06,3165.9,3164.3,8.35]
[1633084142310,1.66e-06,3165.9,3164.4,14.6703]
[1633084142311,0.24449932,3165.8,3164.4,14.6703]
[1633084142510,1.43913,3165.7,3163.0,0.009]
[1633084142712,1.43913,3165.7,3163.8,1.11498422]
[1633084142713,0.26557594,3164.3,3163.8,1.11498422]
[1633084142917,1.50548009,3164.8,3163.9,2.1716817]
[1633084143113,0.003,3165.0,3164.3,0.2655]
[1633084143317,1.45291351,3166.0,3165.6,5.35350837]
[1633084143510,0.02833672,3166.5,3165.6,5.24627976]
[1633084143713,0.26268635,3166.9,3166.5,2.46465396]
[1633084143915,0.003,3167.0,3166.6,0.00744682]
[1633084144112,0.003,3167.0,3166.0,0.003]
[1633084144113,0.11913817,3166.7,3166.0,0.003]
[1633084144320,6.02992328,3166.6,3166.5,0.88111076]
[1633084144513,6.02992328,3166.6,3165.7,2.25326853]
[1633084144514,1.85931906,3166.1,3165.7,2.25326853]
[1633084144737,0.45968235,3168.0,3166.0,0.003]
[1633084144922,0.91277368,3167.1,3166.7,1.03217564]
[1633084145112,20.86868578,3166.1,3165.6,5.19378458]
[1633084145313,8.58979387,3165.5,3164.4,0.003]
[1633084145519,8.3181,3165.4,3163.9,0.003]
[1633084145712,8.3181,3165.4,3164.1,0.02450173]
[1633084145713,4.987403,3165.4,3164.1,0.02450173]
[1633084145916,4.987403,3165.4,3161.7,0.89862816]
[1633084145917,0.79747109,3161.8,3161.7,0.89862816]
[1633084146112,0.89862816,3161.7,3160.7,0.46302393]
[1633084146312,0.89862816,3161.7,3159.5,0.003]
[1633084146313,0.006,3160.9,3160.4,3.76630507]
[1633084146512,2.16161277,3160.4,3159.6,9.13442489]
[1633084146712,2.16161277,3160.4,3160.3,0.02413298]
[1633084147012,0.006,3160.9,3160.0,0.75879768]
[1633084147013,0.79746706,3160.2,3160.0,0.75879768]
[1633084147212,0.01153594,3160.3,3160.1,0.02579273]
[1633084147412,0.14662,3160.3,3160.1,0.003]
[1633084147629,0.14662,3160.3,3158.0,0.06750426]
[1633084147630,3.54842894,3159.4,3158.0,0.06750426]
[1633084147824,0.14662,3159.2,3158.1,2.77770252]
[1633084148017,0.006,3158.3,3158.0,0.06750426]
[1633084148220,1.64770482,3157.6,3155.8,0.006]
[1633084148422,1.06093414,3156.5,3155.8,0.003]
[1633084148613,6.216148,3155.1,3154.9,0.003]
[1633084148817,1.92211122,3155.1,3154.7,1.98693626]
[1633084149026,1.56295709,3154.2,3153.9,5.42735314]
[1633084149220,1.56295709,3154.2,3153.8,0.02417496]
[1633084149221,4.15815935,3153.9,3153.8,0.02417496]
[1633084149414,0.86645089,3153.8,3153.1,0.02441767]
[1633084149619,0.13803455,3152.5,3151.0,6.60097]
[1633084149816,21.745966,3152.3,3151.7,0.02436438]
[1633084150026,0.153,3152.4,3150.5,1.003]
[1633084150027,21.745966,3150.8,3150.6,2.33462274]
[1633084150224,0.003,3151.5,3150.5,1.003]
[1633084150225,0.550697,3151.9,3151.7,4.47392568]
[1633084150414,0.550697,3151.9,3150.5,0.003]
[1633084150415,0.003,3151.9,3150.5,0.003]
[1633084150612,2.40460895,3151.9,3151.8,1.992e-05]
[1633084150830,2.40460895,3151.9,3150.7,0.003]
[1633084150831,9.22947,3151.8,3150.7,0.003]
[1633084151014,9.22947,3151.8,3148.9,6.38423643]
[1633084151015,0.079913,3151.3,3148.9,6.38423643]
[1633084151211,0.604117,3151.3,3149.0,2.70618613]
[1633084151411,0.604117,3151.3,3149.9,0.02584254]
[1633084151623,0.003,3151.5,3150.8,0.18073387]
[1633084151813,1.1109173,3151.3,3150.4,1.16830337]
[1633084152012,0.4775773,3151.5,3151.3,0.15349939]
[1633084152211,0.15349939,3151.3,3149.2,0.00076005]
[1633084152418,0.003,3150.5,3149.2,0.00076005]
[1633084152616,0.006,3151.2,3150.7,4.494e-05]
[1633084152821,0.006,3151.2,3148.8,6.8118252]
[1633084152822,0.153,3151.1,3149.0,0.00376005]
[1633084153040,1.45158434,3149.8,3149.0,0.00376005]
[1633084153322,0.079913,3149.4,3147.7,4.006]
[1633084153517,8.35,3149.7,3149.1,0.02509679]
[1633084153716,8.35,3149.5,3147.8,0.003]
[1633084153914,0.003,3149.0,3147.5,2.02497758]
[1633084154117,0.003,3149.0,3146.7,2.0]
[1633084154118,1.67711389,3148.7,3146.7,2.0]
[1633084154315,1.67711389,3148.7,3146.7,0.15358231]
[1633084154316,0.56780479,3148.0,3146.7,0.15358231]
[1633084154515,0.56780479,3148.0,3144.5,0.003]
[1633084154516,3.819,3146.8,3145.4,0.006]
[1633084154718,1.053,3146.9,3146.1,0.02579184]
[1633084154911,1.053,3146.9,3144.5,0.006]
[1633084155129,3.819,3145.4,3144.5,0.003]
[1633084155317,3.819,3145.4,3143.2,0.02400085]
[1633084155318,1.48340712,3143.5,3143.2,0.02400085]
[1633084155516,0.03697561,3143.6,3143.2,0.02400085]
[1633084155715,1.695354,3144.1,3143.4,0.003]
[1633084155917,1.3583,3143.2,3141.5,0.006]
[1633084156118,6.4961945,3141.4,3140.4,2.406]
[1633084156315,6.4961945,3141.4,3140.5,0.003]
[1633084156316,3.819,3141.0,3140.5,0.003]
[1633084156516,3.819,3141.0,3140.6,0.02437252]
[1633084156714,3.66783854,3141.0,3140.8,1.75996389]
[1633084156924,3.819,3140.7,3140.6,0.09163309]
[1633084157122,4.53922887,3140.7,3140.6,0.04933309]
[1633084157316,0.05826691,3140.6,3138.8,0.02413517]
[1633084157520,0.003,3143.0,3138.8,0.02413517]
[1633084157521,0.53627141,3142.1,3141.5,1.10520386]
[1633084157719,2.5776626,3143.2,3142.4,1.63902661]
[1633084157920,0.1352,3145.4,3143.4,0.0625]
[1633084157921,1.0529,3144.8,3143.4,0.0625]
[1633084158138,0.03597745,3144.6,3144.4,0.02508191]
[1633084158317,3.4211,3145.4,3144.8,0.02352255]
[1633084158318,2.4862,3145.4,3144.8,0.02352255]
[1633084158523,0.003,3146.0,3145.5,0.0595]
[1633084158723,1.3431,3147.9,3145.5,0.0595]
[1633084158724,0.003,3147.0,3146.9,0.0625]
[1633084158920,2.0,3147.1,3146.5,2.71907108]
[1633084159138,2.0,3147.1,3146.5,0.02864316]
[1633084159318,2.0,3147.1,3146.5,0.003]
[1633084159522,0.56917259,3147.0,3146.5,0.65372186]
[1633084159718,2.0,3147.1,3146.6,4.60629199]
[1633084159921,0.02708859,3149.0,3146.6,6.62243712]
[1633084160118,0.02526663,3148.3,3147.0,15.29077711]
[1633084160319,0.003,3149.0,3148.2,1.61187041]
[1633084160528,0.003,3150.5,3148.2,0.03672728]
[1633084160719,1.17943674,3150.3,3148.8,15.0]
[1633084160919,0.02526231,3150.3,3148.4,1.20853301]
[1633084161130,0.02526231,3150.3,3149.3,2.0]
[1633084161320,0.02526231,3150.3,3149.0,0.003]
[1633084161520,0.003,3150.5,3149.5,15.0]
[1633084161720,0.003,3150.5,3150.1,15.0]
[1633084161919,0.93397884,3150.2,3149.9,15.0]
[1633084162120,0.003,3150.5,3149.5,0.003]
[1633084162320,0.003,3150.2,3149.5,0.003]
[1633084162519,0.003,3150.2,3150.0,0.04830467]
[1633084162720,0.003,3150.1,3150.0,0.26925306]
[1633084163118,0.003,3150.5,3150.0,1.39004607]
[1633084163319,0.003,3150.5,3150.1,4.70906912]
[1633084163531,0.003,3150.5,3150.3,15.0]
[1633084163725,0.70746053,3152.5,3150.4,6.3488]
[1633084163726,1.961,3151.6,3150.4,6.3488]
[1633084163922,1.961,3151.6,3150.4,3.29193729]
[1633084163923,0.038358,3150.9,3150.4,3.29193729]
[1633084164226,0.038358,3150.9,3149.5,0.003]
[1633084164227,0.26925306,3150.0,3149.5,0.003]
[1633084164425,0.26925306,3150.0,3148.2,0.006]
[1633084164426,0.153,3149.9,3148.2,0.006]
[1633084164627,0.9668,3146.9,3146.7,0.003]
[1633084164827,0.9668,3146.9,3145.5,1.88379758]
[1633084164828,3.55419,3146.0,3145.7,0.02437116]
[1633084165026,3.55419,3146.0,3145.5,0.003]
[1633084165238,4.40832413,3144.7,3144.5,0.02757962]
[1633084165428,0.193843,3144.6,3144.4,0.08]
[1633084165631,0.193843,3144.6,3143.5,0.0242485]
[1633084165632,3.32636761,3143.6,3143.5,0.0242485]
[1633084165844,0.075,3144.1,3143.5,1.69219867]
[1633084166024,4.02235166,3144.4,3143.6,0.92704105]
[1633084166025,3.85185166,3144.4,3143.6,0.92704105]
[1633084166228,0.003,3144.5,3144.4,2.69328736]
[1633084166423,3.75904927,3146.2,3144.5,0.003]
[1633084166624,1.315,3146.5,3144.5,0.003]
[1633084166625,0.1167,3146.5,3144.5,0.003]
[1633084166823,0.003,3146.5,3145.0,0.003]
[1633084167024,0.003,3146.5,3145.7,1.74716971]
[1633084167226,0.003,3146.5,3145.7,16.74716971]
[1633084167422,10.902,3148.0,3145.9,15.0]
[1633084167624,10.902,3148.0,3146.5,0.006]
[1633084167822,0.153,3147.9,3146.5,0.003]
[1633084168022,0.89340932,3146.6,3146.5,0.003]
[1633084168223,0.89340932,3146.6,3144.8,0.006]
[1633084168224,2.92083509,3145.8,3144.8,0.006]
[1633084168424,0.51164241,3146.5,3145.8,2.08575628]
[1633084168425,0.55567085,3146.5,3145.8,2.08575628]
[1633084168624,0.58228752,3146.5,3145.8,2.08575628]
[1633084168823,1.72019564,3147.5,3146.4,0.003]
[1633084169022,10.04936588,3147.9,3146.4,0.003]
[1633084169240,0.02491682,3146.7,3146.5,0.003]
[1633084169422,10.04742538,3147.9,3145.5,0.009]
[1633084169423,10.899,3147.5,3146.6,0.02410067]
[1633084169743,0.98813543,3144.1,3144.0,1.04221346]
[1633084169924,0.98813543,3144.1,3143.3,0.003]
[1633084169925,0.02425801,3144.1,3143.6,2.001177]
[1633084170344,0.003,3145.0,3143.6,2.001177]
[1633084170345,0.003,3145.0,3144.7,4.27463542]
[1633084170545,0.02477419,3144.9,3144.7,4.27463542]
[1633084170925,0.02456775,3145.6,3145.0,0.003]
[1633084171133,0.02867025,3146.5,3145.1,8.35]
[1633084171328,0.003,3147.0,3145.9,8.35]
[1633084171524,9.932e-05,3146.7,3146.2,0.22979826]
[1633084171724,6.412e-05,3147.3,3146.4,0.29634683]
[1633084171923,0.02451841,3148.2,3146.6,0.30361525]
[1633084172124,0.02486593,3149.7,3147.7,15.0]
[1633084172325,0.003,3150.5,3148.2,15.0]
[1633084172528,0.003,3152.0,3149.1,8.68921114]
[1633084172529,0.02533328,3149.9,3149.1,8.68921114]
[1633084172726,0.37296038,3149.6,3149.2,4.0600156]
[1633084173025,0.003,3153.5,3151.9,0.30200325]
[1633084173239,0.003,3153.5,3151.6,8.35]
[1633084173426,0.003,3153.5,3151.5,0.28608592]
[1633084173427,0.003,3153.5,3152.4,0.25669005]
[1633084173625,0.003,3153.5,3152.4,2.81499214]
[1633084173827,0.02418387,3152.5,3152.0,0.003]
[1633084174226,0.003,3153.5,3152.4,0.003]
[1633084174629,0.003,3153.5,3152.2,0.003]
[1633084174827,0.02424692,3152.3,3152.1,0.003]
[1633084175024,0.02424692,3152.3,3152.0,0.003]
[1633084175025,0.02424692,3152.3,3152.2,6.3448]
[1633084175236,0.02424692,3152.3,3151.8,0.08]
[1633084175237,7.95321968,3152.2,3151.8,0.08]
[1633084175428,7.95321968,3152.2,3149.7,0.003]
[1633084175429,3.92164085,3151.1,3150.9,0.003]
[1633084175627,2.14979782,3151.0,3150.9,0.08]
[1633084175826,2.14979782,3151.0,3149.7,0.006]
[1633084175827,2.88947053,3150.2,3149.7,0.006]
[1633084176025,2.88947053,3150.2,3149.5,0.003]
[1633084176026,0.27561024,3150.1,3149.5,0.08]
[1633084176224,0.27561024,3150.1,3147.6,0.006]
[1633084176225,0.02484489,3149.6,3147.6,0.006]
[1633084176433,0.02484489,3149.6,3146.8,0.003]
[1633084176434,0.29852669,3148.6,3147.3,18.27995419]
[1633084176629,0.02598485,3147.4,3147.3,18.21745419]
[1633084176839,0.02598485,3147.4,3147.3,18.02995419]
[1633084177028,0.003,3150.0,3148.5,5.88707906]
[1633084177226,0.003,3150.0,3149.7,4.26292126]
[1633084177427,10.902,3152.0,3151.1,1.05060518]
[1633084177428,0.003,3152.0,3151.1,1.05060518]
[1633084177633,0.003,3153.0,3152.5,1.15962471]
[1633084177832,1.00565171,3155.3,3153.8,1.8336569]
[1633084178031,1.20208588,3155.5,3155.0,1.00909218]
[1633084178231,0.02472611,3156.1,3155.0,0.11809218]
[1633084178427,0.02472611,3156.1,3155.5,0.98607082]
[1633084178629,0.02472611,3156.1,3155.6,1.419]
[1633084178832,0.2865694,3158.0,3155.6,1.419]
[1633084178833,0.2865694,3158.0,3155.9,0.26520451]
[1633084179032,0.2865694,3158.0,3156.2,1.5783366]
[1633084179033,0.95928235,3157.3,3156.2,1.5783366]
[1633084179232,0.95928235,3157.3,3156.1,6.33457]
[1633084179233,1.03213369,3157.3,3156.1,6.33457]
[1633084179426,1.03213369,3157.3,3156.0,0.003]
[1633084179427,6.14307721,3156.1,3156.0,0.003]
[1633084179626,0.8819757,3156.0,3155.1,0.10075652]
[1633084179841,0.00373988,3156.5,3152.7,0.003]
[1633084179842,8.35,3155.8,3152.7,0.003]
[1633084180028,0.9402555,3154.7,3154.6,0.99276106]
[1633084180227,0.9402555,3154.7,3152.8,6.3466]
[1633084180228,1.14802449,3154.6,3154.5,1.17001887]
[1633084180430,0.006,3156.4,3155.1,1.25595034]
[1633084180633,0.006,3156.4,3155.2,3.04999925]
[1633084180830,0.78990314,3157.3,3155.1,1.25595034]
[1633084181028,0.003,3155.3,3155.1,1.25595034]
[1633084181228,2.10371024,3155.1,3155.0,0.003]
[1633084181430,2.10371024,3155.1,3153.2,0.003]
[1633084181431,0.97441818,3153.6,3152.7,0.003]
[1633084181632,0.97441818,3153.6,3152.8,0.003]
[1633084181633,1.00518508,3153.2,3152.8,0.003]
[1633084181846,1.00518508,3153.2,3152.5,2.471e-05]
[1633084182227,1.00518508,3153.2,3152.4,2.471e-05]
[1633084182427,1.0898074,3152.5,3152.4,2.471e-05]
[1633084182630,0.153,3153.7,3152.4,2.471e-05]
[1633084182631,0.02211315,3154.2,3153.6,2.44885667]
[1633084182835,0.156,3154.5,3153.6,2.44885667]
[1633084182836,0.003,3154.5,3154.2,1.80623666]
[1633084183032,0.003,3154.5,3154.3,2.66317116]
[1633084183228,0.003,3154.5,3154.2,1.80623666]
[1633084183427,1.21962316,3154.0,3153.6,1.09211436]
[1633084183735,0.60263033,3157.5,3156.0,5.59608108]
[1633084183933,0.60263033,3157.5,3154.3,10.12234316]
[1633084183934,0.003,3157.5,3156.1,6.30136366]
[1633084184134,0.003,3157.5,3156.2,8.99638615]
[1633084184332,0.003,3157.5,3156.3,1.47635971]
[1633084184633,0.003,3157.5,3156.4,6.3367]
[1633084184634,1.21379827,3156.7,3156.4,6.3367]
[1633084184828,0.43007732,3157.0,3156.4,6.3367]
[1633084185031,0.96993056,3156.5,3156.4,6.3367]
[1633084185230,0.96993056,3156.5,3156.4,0.09169595]
[1633084185431,3.25362013,3156.4,3156.2,0.05057771]
[1633084185897,0.003,3157.0,3156.4,3.64240854]
[1633084186033,1.7659827,3159.2,3157.0,3.71852135]
[1633084186235,1.7659827,3159.2,3156.5,10.62151575]
[1633084186236,7.32241826,3159.9,3157.1,3.85886165]
[1633084186434,6.8118252,3159.9,3158.5,0.003]
[1633084186844,6.8118252,3159.9,3156.7,3.48705911]
[1633084186845,3.50538649,3157.1,3156.7,3.48705911]
[1633084187034,3.4837931,3156.1,3155.5,0.006]
[1633084187234,3.4837931,3156.1,3154.7,0.009]
[1633084187533,3.95582372,3156.1,3154.5,0.012]
[1633084187734,0.62218589,3154.7,3154.5,0.85530868]
[1633084187935,3.77993247,3155.4,3154.3,0.012]
[1633084188131,3.77993247,3155.4,3153.8,3.28720509]
[1633084188132,4.44576866,3155.9,3154.6,0.009]
[1633084188332,4.91172855,3155.9,3154.6,0.009]
[1633084188531,4.91172855,3155.9,3154.3,0.012]
[1633084188532,2.30168293,3155.9,3154.3,0.012]
[1633084188731,3.4837931,3156.1,3155.9,6.14609589]
[1633084188934,0.64377644,3156.9,3156.1,1.00258478]
[1633084189131,0.003,3157.0,3156.2,1.50368824]
[1633084189335,0.003,3157.5,3156.2,4.13509836]
[1633084189539,3.17069,3160.3,3159.0,1.3861899]
[1633084189540,2.94570776,3160.0,3159.0,1.3861899]
[1633084189737,2.94570776,3160.0,3156.3,8.35]
[1633084189738,0.83662906,3159.0,3158.0,3.81924413]
[1633084189933,1.37900008,3159.0,3158.5,0.003]
[1633084190135,2.17460966,3158.9,3157.4,0.02564625]
[1633084190331,0.55680926,3158.8,3156.5,0.015]
[1633084190530,0.55680926,3158.8,3156.5,0.006]
[1633084190731,0.54577678,3158.8,3156.5,0.006]
[1633084190930,0.54577678,3158.8,3156.3,0.16721979]
[1633084190931,0.003,3158.0,3156.4,0.006]
[1633084191129,0.40877274,3156.4,3156.3,0.16721979]
[1633084191333,0.003,3157.0,3156.3,0.16721979]
[1633084191530,0.003,3157.0,3154.7,0.003]
[1633084191745,8.35,3156.9,3154.4,0.006]
[1633084191933,0.003,3156.0,3155.2,1.87762267]
[1633084192137,0.003,3156.0,3155.3,0.25447631]
[1633084192432,1.00911028,3157.8,3155.3,0.25447631]
[1633084192433,7.92609,3159.8,3158.8,0.78291793]
[1633084192631,0.003,3160.0,3159.0,1.19685833]
[1633084192835,0.64752454,3159.9,3159.3,1.62900772]
[1633084193032,0.009,3161.0,3160.8,7.92357]
[1633084193239,0.006,3161.6,3159.3,1.62900772]
[1633084193240,0.006,3162.4,3161.7,1.1068548]
[1633084193433,0.77686025,3161.6,3160.9,1.99051265]
[1633084193631,0.820435,3161.7,3161.0,0.003]
[1633084193830,0.820435,3161.7,3159.6,0.003]
[1633084194033,0.820435,3161.7,3159.1,0.006]
[1633084194034,0.26557594,3161.5,3159.1,0.006]
[1633084194235,0.003,3161.0,3159.1,0.006]
[1633084194433,0.003,3161.0,3159.6,1.02598231]
[1633084194650,0.94410605,3160.4,3159.1,0.006]
[1633084194893,0.94410605,3160.4,3159.7,0.003]
[1633084195233,0.94410605,3160.4,3158.0,0.006]
[1633084195234,1.19685833,3159.0,3158.0,0.006]
[1633084195636,9.27136216,3158.1,3156.6,0.02562945]
[1633084195832,3.12696213,3159.0,3156.7,0.012]
[1633084195833,1.19685833,3159.0,3156.7,0.012]
[1633084196033,1.19685833,3159.0,3157.3,1.92011319]
[1633084196237,0.003,3159.5,3159.0,1.11114264]
[1633084196843,0.98567574,3159.2,3159.0,1.11114264]
[1633084197033,0.003,3159.5,3159.0,1.11114264]
[1633084197637,0.003,3159.5,3157.6,0.003]
[1633084197638,0.5190307,3159.0,3157.6,0.003]
[1633084197925,4.09739378,3158.9,3156.9,0.009]
[1633084198049,0.73104182,3158.0,3156.9,0.009]
[1633084198241,0.5220307,3159.0,3155.7,0.015]
[1633084198242,0.93523482,3157.3,3155.7,0.015]
[1633084198441,2.03994475,3156.2,3155.7,0.015]
[1633084198638,2.03994475,3156.2,3154.7,0.021]
[1633084198840,3.91543363,3156.1,3154.5,0.04978893]
[1633084199039,2.03994475,3156.2,3154.6,0.021]
[1633084199243,2.03994475,3156.2,3155.9,1.17782948]
[1633084199445,2.03994475,3156.2,3155.4,0.79094803]
[1633084199446,4.07298978,3157.5,3156.2,1.28386036]
[1633084199640,7.92693,3158.9,3158.0,0.82675876]
[1633084199841,7.92552,3159.4,3158.0,6.2435735]
[1633084200040,0.26857594,3159.5,3159.4,2.31042659]
[1633084200241,0.003,3160.5,3160.3,0.94916042]
[1633084200442,0.003,3160.5,3159.4,3.48280372]
[1633084200443,2.2423188,3160.3,3160.1,0.02404901]
[1633084200644,0.009,3162.0,3160.2,1.06459343]
[1633084200910,0.009,3162.0,3158.6,0.003]
[1633084200911,0.81713169,3159.4,3158.6,0.003]
[1633084201050,0.81713169,3159.4,3159.3,0.02420221]
[1633084201236,1.06459343,3160.2,3160.0,0.003]
[1633084201450,1.06459343,3160.2,3157.3,0.25143734]
[1633084201451,2.22821378,3157.3,3157.0,0.03444619]
[1633084201640,6.45290783,3159.0,3155.5,0.003]
[1633084201843,1.26259784,3156.5,3156.3,0.76298635]
[1633084202045,0.27627882,3155.3,3155.2,0.5882275]
[1633084202244,2.11935003,3155.9,3154.3,0.84192796]
[1633084202443,2.11935003,3155.9,3155.2,0.006]
[1633084202444,0.55966,3155.4,3155.2,0.006]
[1633084202644,0.55966,3155.4,3153.8,0.003]
[1633084202645,1.72144947,3154.5,3153.8,0.003]
[1633084202840,0.003,3155.0,3153.9,0.93476299]
[1633084203041,0.003,3155.0,3153.1,0.006]
[1633084203239,0.003,3155.0,3152.6,0.02547348]
[1633084203240,0.003,3155.0,3154.0,0.003]
[1633084203441,0.003,3155.0,3152.7,0.3213876]
[1633084203638,0.003,3155.0,3152.8,2.93051765]
[1633084203839,0.02772556,3155.5,3154.0,1.43988603]
[1633084203840,0.003,3155.5,3154.0,1.43988603]
[1633084204042,0.34192325,3154.0,3153.5,0.91012666]
[1633084204242,2.35147886,3154.3,3154.2,1.10484536]
[1633084204445,2.06804304,3156.3,3154.5,0.003]
[1633084204642,0.003,3156.5,3154.3,5.94959122]
[1633084204643,0.003,3156.5,3154.4,3.19482953]
[1633084204855,0.02864066,3157.5,3157.1,3.30881434]
[1633084205148,0.003,3159.0,3157.6,0.67558]
[1633084205343,0.003,3159.0,3158.2,0.02448978]
[1633084205545,0.003,3160.0,3158.4,0.02568068]
[1633084205742,6.006,3162.4,3159.7,0.0248422]
[1633084205743,0.0059552,3162.1,3159.7,0.0248422]
[1633084205955,0.98064315,3160.9,3160.5,0.003]
[1633084206149,0.0059552,3162.1,3160.7,0.02532191]
[1633084206353,1.13726472,3161.0,3160.7,2.35511095]
[1633084206541,1.14026472,3161.4,3160.8,0.8766472]
[1633084206748,0.99601756,3160.6,3160.4,0.003]
[1633084206942,8.3,3160.5,3159.1,0.02578581]
[1633084207142,2.27645596,3158.6,3158.2,1.6]
[1633084207342,2.27645596,3158.6,3158.2,0.35229682]
[1633084207544,1.98494931,3158.8,3156.6,0.003]
[1633084207545,5.24221407,3157.3,3156.6,0.003]
[1633084207746,5.24221407,3157.3,3156.0,0.003]
[1633084207747,12.28324036,3156.4,3156.0,0.003]
[1633084208055,12.28324036,3156.4,3155.2,0.006]
[1633084208056,6.4707529,3156.4,3155.2,0.006]
[1633084208242,6.4707529,3156.4,3154.2,0.009]
[1633084208243,0.02431487,3156.1,3154.2,0.009]
[1633084208550,0.02420264,3155.1,3154.1,0.009]
[1633084208746,6.34527,3155.6,3154.1,0.009]
[1633084208943,0.02533045,3156.2,3155.3,3.12651897]
[1633084209157,0.02464641,3156.7,3156.4,2.39872182]
[1633084209343,0.003,3157.0,3156.4,15.24873623]
[1633084209554,3.85584254,3158.6,3156.4,15.24873623]
[1633084209555,0.1294,3160.0,3158.8,0.16282202]
[1633084209753,0.1294,3160.0,3158.9,1.81673893]
[1633084209976,0.1294,3160.0,3158.9,2.51141946]
[1633084209977,0.003,3160.0,3158.9,2.51141946]
[1633084210149,0.003,3160.0,3158.9,4.65013613]
[1633084210347,0.003,3162.0,3161.6,1.06414405]
[1633084210545,1.16433633,3161.9,3161.7,6.606e-05]
[1633084210745,1.06414405,3161.6,3160.0,0.003]
[1633084210944,0.003,3161.5,3159.5,0.003]